fUSD/lending_fUSD_20250109
["ID","MTS","AMOUNT","RATE_DAILY","PERIOD"]
[348329001,1736446259359,-500.0,0.0001024,2]
[348329002,1736446259369,-500.0,0.0001024,2]
[348329003,1736446259379,-508.01167748,0.0001024,2]
[348329004,1736446259389,-500.0,0.0001024,2]
[348329005,1736446259399,-526.88,0.0001024,2]
[348329006,1736446259408,-500.0,0.0001024,2]
[348329007,1736446259418,-500.0,0.0001024,2]
[348329008,1736446259428,-500.0,0.0001024,2]
[348329009,1736446259440,-500.0,0.0001024,2]
[348329010,1736446259450,-500.0,0.0001024,2]
[348329011,1736446259460,-500.0,0.0001024,2]
[348329012,1736446259470,-500.0,0.0001024,2]
[348329013,1736446259480,-500.0,0.0001024,2]
[348329014,1736446259492,-509.65,0.0001024,2]
[348329015,1736446259502,-500.0,0.0001024,2]
[348329016,1736446259512,-578.81,0.0001024,2]
[348329017,1736446259521,-914.2,0.0001024,2]
[348329018,1736446259530,-762.95,0.00010241,2]
[348329019,1736446259540,-500.0,0.00010241,2]
[348329020,1736446259550,-1085.97,0.00010241,2]
[348329021,1736446259560,-500.0,0.00010241,2]
[348329022,1736446259570,-500.0,0.00010241,2]
[348329023,1736446259579,-1367.76,0.00010241,2]
[348329024,1736446259589,-500.0,0.00010241,2]
[348329025,1736446259599,-920.0,0.00010241,2]
[348329026,1736446259608,-500.0,0.00010241,2]
[348329027,1736446259618,-609.89280206,0.00010241,2]
[348329028,1736446259627,-500.0,0.00010241,2]
[348329029,1736446259636,-500.0,0.00010241,2]
[348329030,1736446259646,-500.0,0.00010241,2]
[348329031,1736446259860,-500.0,0.00010241,2]
[348329032,1736446259871,-500.0,0.00010241,2]
[348329033,1736446259880,-500.0,0.00010241,2]
[348329034,1736446259890,-500.0,0.00010241,2]
[348329035,1736446259900,-2408.14,0.00010241,2]
[348329036,1736446259909,-500.0,0.00010241,2]
[348329037,1736446259918,-509.43,0.00010241,2]
[348329038,1736446259928,-500.0,0.00010241,2]
[348329039,1736446259940,-470.27486098,0.00010241,2]
[348329040,1736446259950,-500.0,0.00010241,2]
[348329041,1736446259959,-500.0,0.00010241,2]
[348329042,1736446259969,-500.0,0.00010241,2]
[348329043,1736446259980,-1733.41,0.00010241,2]
[348329044,1736446259990,-500.0,0.00010241,2]
[348329045,1736446260000,-500.0,0.00010241,2]
[348329046,1736446260009,-500.0,0.00010241,2]
[348329047,1736446260020,-500.0,0.00010241,2]
[348329048,1736446260030,-500.0,0.00010241,2]
[348329049,1736446260048,-500.0,0.00010241,2]
[348329050,1736446260058,-6312.29,0.00010241,2]
[348329051,1736446260068,-500.0,0.00010241,2]
[348329052,1736446260077,-500.0,0.00010241,2]
[348329053,1736446260087,-500.0,0.00010241,2]
[348329054,1736446260097,-500.0,0.00010241,2]
[348329055,1736446260106,-2345.7,0.00010241,2]
[348329056,1736446260115,-500.0,0.00010241,2]
[348329057,1736446260124,-500.0,0.00010241,2]
[348329058,1736446260136,-500.0,0.00010241,2]
[348329059,1736446260146,-500.0,0.00010241,2]
[348329060,1736446260156,-500.0,0.00010241,2]
[348329061,1736446260166,-500.0,0.00010241,2]
[348329062,1736446260176,-500.0,0.00010241,2]
[348329063,1736446260188,-500.0,0.00010241,2]
[348329064,1736446260198,-500.0,0.00010241,2]
[348329065,1736446260208,-500.0,0.00010241,2]
[348329066,1736446260217,-1289.19,0.00010241,2]
[348329067,1736446260226,-500.0,0.00010241,2]
[348329068,1736446260236,-500.0,0.00010241,2]
[348329069,1736446260245,-500.0,0.00010241,2]
[348329070,1736446260255,-500.0,0.00010241,2]
[348329071,1736446260264,-500.0,0.00010241,2]
[348329072,1736446260274,-534.22,0.00010241,2]
[348329073,1736446260283,-500.0,0.00010241,2]
[348329074,1736446260293,-500.0,0.00010241,2]
[348329075,1736446260302,-500.0,0.00010241,2]
[348329076,1736446260312,-500.0,0.00010241,2]
[348329077,1736446260322,-500.0,0.00010241,2]
[348329078,1736446260333,-500.0,0.00010241,2]
[348329079,1736446260342,-500.0,0.00010241,2]
[348329080,1736446260352,-500.0,0.00010241,2]
[348329081,1736446260362,-959.38,0.00010241,2]
[348329082,1736446260374,-500.0,0.00010241,2]
[348329083,1736446260384,-500.0,0.00010241,2]
[348329084,1736446260394,-500.0,0.00010241,2]
[348329085,1736446260404,-539.48,0.00010241,2]
[348329086,1736446260414,-500.0,0.00010241,2]
[348329087,1736446260424,-500.0,0.00010241,2]
[348329088,1736446260438,-500.0,0.00010241,2]
[348329089,1736446260448,-500.0,0.00010241,2]
[348329090,1736446260459,-500.0,0.00010241,2]
[348329091,1736446260468,-500.0,0.00010241,2]
[348329092,1736446260478,-500.0,0.00010241,2]
[348329093,1736446260488,-626.84,0.00010241,2]
[348329094,1736446260498,-500.0,0.00010241,2]
[348329095,1736446260508,-590.62,0.00010241,2]
[348329096,1736446260518,-500.0,0.00010241,2]
[348329097,1736446260528,-500.0,0.00010241,2]
[348329098,1736446260538,-500.0,0.00010241,2]
[348329099,1736446260548,-500.0,0.00010241,2]
[348329100,1736446260558,-500.0,0.00010241,2]
[348329101,1736446260568,-590.65,0.00010241,2]
[348329102,1736446260578,-500.0,0.00010241,2]
[348329103,1736446260587,-517.17581537,0.00010241,2]
[348329104,1736446260597,-500.0,0.00010241,2]
[348329105,1736446260607,-500.0,0.00010241,2]
[348329106,1736446260617,-736.38,0.00010241,2]
[348329107,1736446260626,-311.21,0.00010241,2]
[348329108,1736446260636,-500.0,0.00010241,2]
[348329109,1736446260645,-500.0,0.00010241,2]
[348329110,1736446260654,-500.0,0.00010241,2]
[348329111,1736446260664,-500.0,0.00010241,2]
[348329112,1736446260673,-500.0,0.00010241,2]
[348329113,1736446260682,-500.0,0.00010241,2]
[348329114,1736446260692,-500.0,0.00010241,2]
[348329115,1736446260703,-500.0,0.00010241,2]
[348329116,1736446260712,-500.0,0.00010241,2]
[348329117,1736446260722,-500.0,0.00010241,2]
[348329118,1736446260732,-500.0,0.00010241,2]
[348329119,1736446260742,-500.0,0.00010241,2]
[348329120,1736446260751,-500.0,0.00010241,2]
[348329121,1736446260761,-500.0,0.00010241,2]
[348329122,1736446260772,-500.0,0.00010241,2]
[348329123,1736446260784,-500.0,0.00010241,2]
[348329124,1736446260794,-835.57,0.00010241,2]
[348329125,1736446260803,-968.37,0.00010241,2]
[348329126,1736446260815,-500.0,0.00010241,2]
[348329127,1736446260825,-500.0,0.00010241,2]
[348329128,1736446260834,-500.0,0.00010241,2]
[348329129,1736446260843,-507.91,0.00010241,2]
[348329130,1736446260855,-500.0,0.00010241,2]
[348329131,1736446260864,-842.86,0.00010241,2]
[348329132,1736446260873,-888.38,0.00010241,2]
[348329133,1736446260883,-500.0,0.00010241,2]
[348329134,1736446260892,-500.0,0.00010241,2]
[348329135,1736446260902,-500.0,0.00010241,2]
[348329136,1736446260911,-809.97,0.00010241,2]
[348329137,1736446260921,-500.0,0.00010241,2]
[348329138,1736446260930,-500.0,0.00010241,2]
[348329139,1736446260942,-500.0,0.00010241,2]
[348329140,1736446260952,-500.0,0.00010241,2]
[348329141,1736446260961,-558.58,0.00010241,2]
[348329142,1736446260971,-500.0,0.00010241,2]
[348329143,1736446260980,-500.0,0.00010241,2]
[348329144,1736446260991,-1158.79,0.00010241,2]
[348329145,1736446261000,-500.0,0.00010241,2]
[348329146,1736446261010,-558.91,0.00010241,2]
[348329147,1736446261020,-500.0,0.00010241,2]
[348329148,1736446261030,-500.0,0.00010241,2]
[348329149,1736446261041,-500.0,0.00010241,2]
[348329150,1736446261052,-1242.9,0.00010241,2]
[348329151,1736446261062,-527.0,0.00010241,2]
[348329152,1736446261072,-376.50601829,0.00010241,2]
[348329153,1736446261082,-500.0,0.00010241,2]
[348329154,1736446261091,-500.0,0.00010241,2]
[348329155,1736446261101,-500.0,0.00010241,2]
[348329156,1736446261110,-500.0,0.00010241,2]
[348329157,1736446261120,-1185.16,0.00010241,2]
[348329158,1736446261129,-500.0,0.00010241,2]
[348329159,1736446261138,-500.0,0.00010241,2]
[348329160,1736446261148,-500.0,0.00010241,2]
[348329161,1736446261157,-500.0,0.00010241,2]
[348329162,1736446261167,-500.0,0.00010241,2]
[348329163,1736446261176,-500.0,0.00010241,2]
[348329164,1736446261189,-500.0,0.00010241,2]
[348329165,1736446261199,-500.0,0.00010241,2]
[348329166,1736446261208,-1316.71,0.00010241,2]
[348329167,1736446261218,-500.0,0.00010241,2]
[348329168,1736446261227,-2776.94,0.00010241,2]
[348329169,1736446261236,-1591.82,0.00010241,2]
[348329170,1736446261246,-1402.8,0.00010241,2]
[348329171,1736446261255,-900.32,0.00010241,2]
[348329172,1736446261263,-4683.46817686,0.00010273,4]
[348329173,1736446261272,-202.16575369,0.000103,2]
[348329174,1736446261282,-500.0,0.0001034,2]
[348329175,1736446261291,-500.0,0.00010341,2]
[348329176,1736446261301,-1849.82,0.00010341,2]
[348329177,1736446261311,-1436.96,0.00010341,2]
[348329178,1736446261320,-500.0,0.00010343,2]
[348329179,1736446261329,-565.23,0.00010343,2]
[348329180,1736446261338,-1202.75,0.00010343,2]
[348329181,1736446261347,-601.54,0.00010343,2]
[348329182,1736446261356,-500.0,0.00010343,2]
[348329183,1736446261366,-636.43,0.00010343,2]
[348329184,1736446261375,-500.0,0.00010343,2]
[348329185,1736446261384,-966.55,0.00010343,2]
[348329186,1736446261394,-608.61,0.00010343,2]
[348329187,1736446261403,-1619.91,0.00010343,2]
[348329188,1736446261413,-1017.76,0.00010343,2]
[348329189,1736446261422,-1429.27,0.00010343,2]
[348329190,1736446261434,-1446.77,0.00010343,2]
[348329191,1736446261444,-1947.06,0.00010343,2]
[348329192,1736446261453,-2441.87,0.00010343,2]
[348329193,1736446261463,-5799.11,0.00010343,2]
[348329194,1736446261472,-1002.85,0.00010343,2]
[348329195,1736446261481,-538.3,0.00010343,2]
[348329196,1736446261491,-628.9,0.00010343,2]
[348329197,1736446261500,-2153.94,0.00010343,2]
[348329198,1736446261510,-500.0,0.00010343,2]
[348329199,1736446261519,-1550.54,0.00010343,2]
[348329200,1736446261529,-728.92,0.00010343,2]
[348329201,1736446261537,-1048.4,0.00010343,2]
[348329202,1736446261547,-1000.0,0.00010343,2]
[348329203,1736446261557,-930.31,0.00010343,2]
[348329204,1736446261566,-500.0,0.00010343,2]
[348329205,1736446261575,-606.91,0.00010419,2]
[348329206,1736446261585,-1000.0,0.00010491,2]
[348329207,1736446261594,-1500.0,0.00010493,2]
[348329208,1736446261604,-202.16575369,0.000105,2]
[348329209,1736446261613,-1113.63,0.00010513,2]
[348329210,1736446261623,-500.0,0.00010513,2]
[348329211,1736446261632,-2128.58,0.00010513,2]
[348329212,1736446261642,-3067.28,0.00010513,2]
[348329213,1736446261651,-962.54,0.00010513,2]
[348329214,1736446261661,-1563.66,0.00010513,2]
[348329215,1736446261671,-500.0,0.00010513,2]
[348329216,1736446261680,-1114.99,0.00010513,2]
[348329217,1736446261696,-641.1,0.00010513,2]
[348329218,1736446261704,-2450.85,0.00010513,2]
[348329219,1736446261714,-500.0,0.00010513,2]
[348329220,1736446261725,-500.0,0.00010513,2]
[348329221,1736446261734,-882.83,0.00010513,2]
[348329222,1736446261743,-112.50308259,0.00010513,2]
[348329223,1736446261874,-387.49691741,0.00010513,2]
[348329224,1736446261884,-500.0,0.00010513,2]
[348329225,1736446261895,-972.84,0.00010513,2]
[348329226,1736446261905,-500.0,0.00010513,2]
[348329227,1736446261916,-500.0,0.00010513,2]
[348329228,1736446261926,-795.71,0.00010513,2]
[348329229,1736446261938,-561.10737379,0.00010513,2]
[348329230,1736446261948,-1731.07,0.00010513,2]
[348329231,1736446261957,-500.0,0.00010514,2]
[348329232,1736446261967,-500.0,0.00010514,2]
[348329233,1736446261977,-500.0,0.00010514,2]
[348329234,1736446261987,-500.0,0.00010514,2]
[348329235,1736446261996,-510.32,0.00010514,2]
[348329236,1736446262006,-500.0,0.00010514,2]
[348329237,1736446262015,-500.0,0.00010514,2]
[348329238,1736446262025,-500.0,0.00010514,2]
[348329239,1736446262035,-500.0,0.00010514,2]
[348329240,1736446262044,-500.0,0.00010514,2]
[348329241,1736446262053,-500.0,0.00010514,2]
[348329242,1736446262062,-500.0,0.00010514,2]
[348329243,1736446262071,-500.0,0.00010514,2]
[348329244,1736446262080,-500.0,0.00010514,2]
[348329245,1736446262090,-500.0,0.00010514,2]
[348329246,1736446262099,-786.64,0.00010514,2]
[348329247,1736446262108,-669.86,0.00010514,2]
[348329248,1736446262118,-576.88256683,0.00010514,2]
[348329249,1736446262128,-204.14,0.00010514,2]
[348329250,1736446262137,-500.0,0.00010514,2]
[348329251,1736446262147,-500.0,0.00010514,2]
[348329252,1736446262157,-500.0,0.00010514,2]
[348329253,1736446262167,-500.0,0.00010514,2]
[348329254,1736446262177,-500.0,0.00010514,2]
[348329255,1736446262188,-500.0,0.00010514,2]
[348329256,1736446262200,-500.0,0.00010514,2]
[348329257,1736446262210,-500.0,0.00010514,2]
[348329258,1736446262220,-500.0,0.00010514,2]
[348329259,1736446262230,-836.58,0.00010514,2]
[348329260,1736446262240,-500.0,0.00010514,2]
[348329261,1736446262250,-642.72,0.00010514,2]
[348329262,1736446262259,-500.0,0.00010514,2]
[348329263,1736446262269,-546.66,0.00010514,2]
[348329264,1736446262279,-500.0,0.00010514,2]
[348329265,1736446262288,-500.0,0.00010514,2]
[348329266,1736446262303,-500.0,0.00010514,2]
[348329267,1736446262315,-611.28,0.00010514,2]
[348329268,1736446262331,-500.0,0.00010514,2]
[348329269,1736446262341,-500.0,0.00010514,2]
[348329270,1736446262351,-500.0,0.00010514,2]
[348329271,1736446262361,-500.0,0.00010514,2]
[348329272,1736446262371,-500.0,0.00010514,2]
[348329273,1736446262381,-500.0,0.00010514,2]
[348329274,1736446262390,-500.0,0.00010514,2]
[348329275,1736446262400,-500.0,0.00010514,2]
[348329276,1736446262419,-500.0,0.00010514,2]
[348329277,1736446262440,-500.0,0.00010514,2]
[348329278,1736446262464,-500.0,0.00010514,2]
[348329279,1736446262486,-500.0,0.00010514,2]
[348329280,1736446262508,-747.4,0.00010514,2]
[348329281,1736446262531,-500.0,0.00010514,2]
[348329282,1736446262553,-500.44,0.00010514,2]
[348329283,1736446262575,-500.0,0.00010514,2]
[348329284,1736446262597,-500.0,0.00010514,2]
[348329285,1736446262618,-500.0,0.00010514,2]
[348329286,1736446262639,-500.0,0.00010514,2]
[348329287,1736446262661,-507.94,0.00010514,2]
[348329288,1736446262681,-500.0,0.00010514,2]
[348329289,1736446262699,-500.0,0.00010514,2]
[348329290,1736446262712,-500.0,0.00010514,2]
[348329291,1736446262723,-500.0,0.00010514,2]
[348329292,1736446262733,-500.0,0.00010514,2]
[348329293,1736446262744,-677.74,0.00010514,2]
[348329294,1736446262754,-500.0,0.00010514,2]
[348329295,1736446262765,-500.0,0.00010514,2]
[348329296,1736446262780,-649.22,0.00010514,2]
[348329297,1736446262790,-500.0,0.00010514,2]
[348329298,1736446262801,-500.0,0.00010514,2]
[348329299,1736446262810,-500.0,0.00010514,2]
[348329300,1736446262821,-500.0,0.00010514,2]
[348329301,1736446262832,-736.91,0.00010514,2]
[348329302,1736446262842,-500.0,0.00010514,2]
[348329303,1736446262851,-500.0,0.00010514,2]
[348329304,1736446262860,-500.0,0.00010514,2]
[348329305,1736446262870,-652.46,0.00010514,2]
[348329306,1736446262879,-714.08,0.00010514,2]
[348329307,1736446262888,-500.0,0.00010514,2]
[348329308,1736446262898,-500.0,0.00010514,2]
[348329309,1736446262906,-500.0,0.00010514,2]
[348329310,1736446262917,-500.0,0.00010514,2]
[348329311,1736446262928,-557.03,0.00010514,2]
[348329312,1736446262940,-500.0,0.00010514,2]
[348329313,1736446262950,-500.0,0.00010514,2]
[348329314,1736446262960,-500.0,0.00010514,2]
[348329315,1736446262969,-544.7,0.00010514,2]
[348329316,1736446262979,-500.0,0.00010514,2]
[348329317,1736446262988,-500.0,0.00010514,2]
[348329318,1736446262999,-500.0,0.00010514,2]
[348329319,1736446263009,-544.48,0.00010514,2]
[348329320,1736446263018,-296.28001704,0.00010514,2]
[348329321,1736446263029,-500.0,0.00010514,2]
[348329322,1736446263040,-704.44,0.00010514,2]
[348329323,1736446263051,-524.18,0.00010514,2]
[348329324,1736446263060,-500.0,0.00010514,2]
[348329325,1736446263071,-500.0,0.00010514,2]
[348329326,1736446263081,-318.75,0.00010514,2]
[348329327,1736446263092,-500.0,0.00010514,2]
[348329328,1736446263103,-500.0,0.00010514,2]
[348329329,1736446263114,-500.0,0.00010514,2]
[348329330,1736446263123,-646.53,0.00010514,2]
[348329331,1736446263134,-500.0,0.00010514,2]
[348329332,1736446263145,-500.0,0.00010514,2]
[348329333,1736446263155,-500.0,0.00010514,2]
[348329334,1736446263165,-934.69,0.00010514,2]
[348329335,1736446263175,-500.0,0.00010514,2]
[348329336,1736446263187,-500.0,0.00010514,2]
[348329337,1736446263198,-500.0,0.00010514,2]
[348329338,1736446263209,-500.0,0.00010514,2]
[348329339,1736446263219,-500.0,0.00010514,2]
[348329340,1736446263230,-500.0,0.00010514,2]
[348329341,1736446263241,-294.47497414,0.00010514,2]
[348329342,1736446263252,-514.0,0.00010514,2]
[348329343,1736446263263,-500.0,0.00010514,2]
[348329344,1736446263273,-500.0,0.00010514,2]
[348329345,1736446263284,-165.53020011,0.00010514,2]
[348329346,1736446263295,-500.0,0.00010514,2]
[348329347,1736446263306,-736.84,0.00010514,2]
[348329348,1736446263316,-500.0,0.00010514,2]
[348329349,1736446263326,-500.0,0.00010514,2]
[348329350,1736446263336,-500.0,0.00010514,2]
[348329351,1736446263347,-500.0,0.00010514,2]
[348329352,1736446263357,-500.0,0.00010514,2]
[348329353,1736446263371,-500.0,0.00010514,2]
[348329354,1736446263381,-881.49,0.00010514,2]
[348329355,1736446263391,-500.0,0.00010514,2]
[348329356,1736446263401,-500.0,0.00010514,2]
[348329357,1736446263411,-500.0,0.00010514,2]
[348329358,1736446263421,-500.0,0.00010514,2]
[348329359,1736446263431,-500.0,0.00010514,2]
[348329360,1736446263443,-500.0,0.00010514,2]
[348329361,1736446263453,-1097.98,0.00010514,2]
[348329362,1736446263463,-179.3,0.00010514,2]
[348329363,1736446263473,-575.7,0.00010514,2]
[348329364,1736446263482,-604.6,0.00010514,2]
[348329365,1736446263492,-500.0,0.00010514,2]
[348329366,1736446263502,-500.0,0.00010514,2]
[348329367,1736446263514,-400.9183488,0.00010514,2]
[348329368,1736446263524,-721.27,0.00010514,2]
[348329369,1736446263535,-977.99,0.00010514,2]
[348329370,1736446263546,-500.0,0.00010514,2]
[348329371,1736446263556,-500.0,0.00010514,2]
[348329372,1736446263565,-500.0,0.00010514,2]
[348329373,1736446263576,-500.0,0.00010514,2]
[348329374,1736446263586,-500.0,0.00010514,2]
[348329375,1736446263790,-500.0,0.00010514,2]
[348329376,1736446263801,-547.73,0.00010514,2]
[348329377,1736446263811,-500.0,0.00010514,2]
[348329378,1736446263823,-911.73,0.00010514,2]
[348329379,1736446263833,-500.0,0.00010514,2]
[348329380,1736446263844,-500.0,0.00010514,2]
[348329381,1736446263860,-856.27,0.00010514,2]
[348329382,1736446263870,-500.0,0.00010514,2]
[348329383,1736446263881,-539.18318413,0.00010514,2]
[348329384,1736446263891,-500.0,0.00010514,2]
[348329385,1736446263901,-500.0,0.00010514,2]
[348329386,1736446263911,-552.74,0.00010514,2]
[348329387,1736446263922,-500.0,0.00010514,2]
[348329388,1736446263932,-500.0,0.00010514,2]
[348329389,1736446263945,-2976.67,0.00010514,2]
[348329390,1736446263955,-500.0,0.00010514,2]
[348329391,1736446263964,-500.0,0.00010514,2]
[348329392,1736446263975,-500.0,0.00010514,2]
[348329393,1736446263985,-500.0,0.00010514,2]
[348329394,1736446263996,-500.0,0.00010514,2]
[348329395,1736446264006,-551.12,0.00010514,2]
[348329396,1736446264016,-500.0,0.00010514,2]
[348329397,1736446264027,-500.0,0.00010514,2]
[348329398,1736446264037,-597.63,0.00010514,2]
[348329399,1736446264046,-500.0,0.00010514,2]
[348329400,1736446264057,-645.63,0.00010514,2]
[348329401,1736446264071,-500.0,0.00010514,2]
[348329402,1736446264083,-500.0,0.00010514,2]
[348329403,1736446264093,-613.72,0.00010514,2]
[348329404,1736446264104,-500.0,0.00010514,2]
[348329405,1736446264114,-500.0,0.00010514,2]
[348329406,1736446264125,-500.0,0.00010514,2]
[348329407,1736446264136,-500.0,0.00010514,2]
[348329408,1736446264146,-1554.32,0.00010514,2]
[348329409,1736446264157,-500.0,0.00010514,2]
[348329410,1736446264167,-667.84,0.00010514,2]
[348329411,1736446264177,-500.0,0.00010514,2]
[348329412,1736446264192,-500.0,0.00010514,2]
[348329413,1736446264203,-500.0,0.00010514,2]
[348329414,1736446264214,-715.52,0.00010514,2]
[348329415,1736446264225,-500.0,0.00010514,2]
[348329416,1736446264236,-500.0,0.00010514,2]
[348329417,1736446264246,-500.0,0.00010514,2]
[348329418,1736446264256,-500.0,0.00010514,2]
[348329419,1736446264267,-500.0,0.00010514,2]
[348329420,1736446264278,-689.4,0.00010514,2]
[348329421,1736446264288,-653.62,0.00010514,2]
[348329422,1736446264298,-502.01,0.00010514,2]
[348329423,1736446264308,-500.0,0.00010514,2]
[348329424,1736446264319,-500.0,0.00010514,2]
[348329425,1736446264329,-500.0,0.00010514,2]
[348329426,1736446264339,-660.67,0.00010514,2]
[348329427,1736446264348,-500.0,0.00010514,2]
[348329428,1736446264358,-500.0,0.00010514,2]
[348329429,1736446264370,-2792.63,0.00010514,2]
[348329430,1736446264380,-500.0,0.00010514,2]
[348329431,1736446264391,-500.0,0.00010514,2]
[348329432,1736446264401,-2039.19,0.00010514,2]
[348329433,1736446264412,-500.0,0.00010514,2]
[348329434,1736446264423,-500.0,0.00010514,2]
[348329435,1736446264433,-1105.4,0.00010514,2]
[348329436,1736446264450,-500.0,0.00010514,2]
[348329437,1736446264461,-500.0,0.00010514,2]
[348329438,1736446264472,-500.0,0.00010514,2]
[348329439,1736446264482,-500.0,0.00010514,2]
[348329440,1736446264493,-500.0,0.00010514,2]
[348329441,1736446264504,-500.0,0.00010514,2]
[348329442,1736446264514,-1883.64,0.00010514,2]
[348329443,1736446264524,-500.0,0.00010514,2]
[348329444,1736446264534,-510.20269529,0.00010514,2]
[348329445,1736446264545,-731.185071,0.00010514,2]
[348329446,1736446264555,-500.0,0.00010514,2]
[348329447,1736446264565,-500.0,0.00010514,2]
[348329448,1736446264575,-500.0,0.00010514,2]
[348329449,1736446264587,-3402.98,0.00010514,2]
[348329450,1736446264597,-500.0,0.00010514,2]
[348329451,1736446264607,-500.0,0.00010514,2]
[348329452,1736446264618,-500.0,0.00010514,2]
[348329453,1736446264628,-500.0,0.00010514,2]
[348329454,1736446264638,-6027.63,0.00010514,2]
[348329455,1736446264648,-500.0,0.00010514,2]
[348329456,1736446264657,-500.0,0.00010514,2]
[348329457,1736446264667,-500.0,0.00010514,2]
[348329458,1736446264677,-500.0,0.00010514,2]
[348329459,1736446264692,-521.49,0.00010514,2]
[348329460,1736446264702,-500.0,0.00010514,2]
[348329461,1736446264713,-500.0,0.00010514,2]
[348329462,1736446264723,-500.0,0.00010514,2]
[348329463,1736446264733,-617.41,0.00010514,2]
[348329464,1736446264743,-500.0,0.00010514,2]
[348329465,1736446264753,-500.0,0.00010514,2]
[348329466,1736446264763,-2040.34,0.00010514,2]
[348329467,1736446264780,-500.0,0.00010514,2]
[348329468,1736446264792,-500.0,0.00010514,2]
[348329469,1736446264803,-544.73,0.00010514,2]
[348329470,1736446264814,-727.318223,0.00010514,2]
[348329471,1736446264825,-500.0,0.00010514,2]
[348329472,1736446264835,-500.0,0.00010514,2]
[348329473,1736446264845,-500.0,0.00010514,2]
[348329474,1736446264855,-500.0,0.00010514,2]
[348329475,1736446264865,-500.0,0.00010514,2]
[348329476,1736446264875,-1167.08,0.00010514,2]
[348329477,1736446264885,-500.0,0.00010514,2]
[348329478,1736446264895,-669.77,0.00010514,2]
[348329479,1736446264905,-500.0,0.00010514,2]
[348329480,1736446264915,-625.31,0.00010514,2]
[348329481,1736446264925,-500.0,0.00010514,2]
[348329482,1736446264937,-500.0,0.00010514,2]
[348329483,1736446264949,-500.0,0.00010514,2]
[348329484,1736446264958,-663.2,0.00010514,2]
[348329485,1736446264969,-500.0,0.00010514,2]
[348329486,1736446264979,-1967.19,0.00010514,2]
[348329487,1736446264988,-500.0,0.00010514,2]
[348329488,1736446264999,-500.0,0.00010514,2]
[348329489,1736446265009,-960.63,0.00010514,2]
[348329490,1736446265020,-500.0,0.00010514,2]
[348329491,1736446265030,-500.0,0.00010514,2]
[348329492,1736446265042,-500.0,0.00010514,2]
[348329493,1736446265053,-1864.07,0.00010514,2]
[348329494,1736446265065,-500.0,0.00010514,2]
[348329495,1736446265075,-500.0,0.00010514,2]
[348329496,1736446265086,-500.0,0.00010514,2]
[348329497,1736446265097,-533.66,0.00010514,2]
[348329498,1736446265108,-500.0,0.00010514,2]
[348329499,1736446265118,-500.0,0.00010514,2]
[348329500,1736446265129,-500.0,0.00010514,2]